bitfinex/quotes_BTCUSD_20250224
["timestamp","ask_amount","ask_price","bid_price","bid_amount"]
[1740407463024,0.15671,95718.0,95717.0,0.0081761]
[1740407463231,0.0300374,95725.0,95705.0,0.208974]
[1740407463442,0.0300374,95725.0,95707.0,0.156727]
[1740407463668,0.208934,95724.0,95699.0,0.0463]
[1740407463872,0.208934,95724.0,95708.0,0.0426484]
[1740407464049,0.156701,95724.0,95709.0,0.07646266]
[1740407464285,0.0001297,95724.0,95716.0,0.156712]
[1740407464494,0.0001297,95724.0,95713.0,0.04022741]
[1740407464697,0.0001297,95724.0,95723.0,0.156702]
[1740407464947,0.08018539,95743.0,95723.0,0.1515947]
[1740407465145,0.08018539,95743.0,95740.0,0.208897]
[1740407465353,0.08018539,95743.0,95740.0,0.10264569]
[1740407465761,0.08018539,95743.0,95742.0,0.156671]
[1740407465966,0.08018539,95743.0,95742.0,0.25931669]
[1740407466169,0.08018539,95743.0,95742.0,0.31238782]
[1740407466371,0.08018539,95743.0,95742.0,0.32692867]
[1740407466574,0.23685439,95743.0,95742.0,0.15571682]
[1740407466780,0.08018539,95743.0,95742.0,0.05307113]
[1740407466986,0.06812949,95743.0,95739.0,0.10028901]
[1740407467131,0.06812949,95743.0,95742.0,0.29936043]
[1740407467547,0.06812949,95743.0,95742.0,0.31390128]
[1740407467920,0.06812949,95743.0,95742.0,0.46390128]
[1740407468196,0.0008496,95761.0,95760.0,0.306641]
[1740407468326,0.0008496,95761.0,95760.0,0.52412754]
[1740407468530,0.0008496,95774.0,95773.0,0.30662]
[1740407468766,0.083628,95849.0,95811.0,0.00982459]
[1740407468982,0.00125489,95821.0,95811.0,0.00982459]
[1740407469182,0.00125489,95825.0,95811.0,0.00982459]
[1740407469384,0.00125489,95829.0,95811.0,0.00982459]
[1740407469585,0.00544815,95831.0,95819.0,0.156544]
[1740407469957,0.00544815,95831.0,95811.0,0.00982459]
[1740407470167,0.0008485,95839.0,95832.0,0.00439384]
[1740407470574,0.0008485,95839.0,95832.0,0.10264569]
[1740407470782,0.0008485,95839.0,95833.0,0.00146068]
[1740407470998,0.0008485,95839.0,95834.0,0.0014607]
[1740407471211,0.156518,95836.0,95834.0,0.10264569]
[1740407471634,0.0008485,95839.0,95834.0,0.15756841]
[1740407471849,0.0008485,95839.0,95834.0,0.05492272]
[1740407472266,0.00495724,95838.0,95820.0,0.156542]
[1740407472474,0.00495724,95838.0,95821.0,0.10264569]
[1740407472796,0.00495724,95838.0,95829.0,0.4908354]
[1740407472993,0.000978,95839.0,95830.0,0.10410635]
[1740407473411,0.156517,95837.0,95830.0,0.14888551]
[1740407473619,0.004934,95836.0,95830.0,0.14888551]
[1740407473834,0.000978,95839.0,95830.0,0.14742485]
[1740407474043,0.156523,95833.0,95830.0,0.04477916]
[1740407474253,0.00481554,95832.0,95830.0,0.04477916]
[1740407474465,0.15915869,95820.0,95814.0,0.24730641]
[1740407474682,0.15915869,95820.0,95819.0,0.156545]
[1740407474891,0.15915869,95820.0,95819.0,0.153545]
[1740407475105,0.15915869,95820.0,95819.0,0.19683864]
[1740407475559,0.15915869,95820.0,95819.0,0.35928375]
[1740407475771,0.15915869,95820.0,95819.0,0.46192944]
[1740407475981,0.15915869,95820.0,95819.0,0.43358433]
[1740407476189,0.15915869,95820.0,95819.0,0.27843933]
[1740407476622,0.15915869,95820.0,95819.0,0.42843933]
[1740407476829,0.15915869,95820.0,95819.0,0.41553933]
[1740407477452,0.15915869,95820.0,95819.0,0.42253933]
[1740407477863,0.15915869,95820.0,95819.0,0.18643933]
[1740407478279,0.15915869,95820.0,95819.0,0.13843933]
[1740407478493,0.31570169,95820.0,95819.0,0.03579364]
[1740407478913,0.32059641,95820.0,95819.0,0.014]
[1740407479139,0.32059641,95820.0,95819.0,0.07394857]
[1740407479360,0.32059641,95820.0,95819.0,0.007]
[1740407479570,0.16405341,95820.0,95791.0,0.32927872]
[1740407479786,0.156561,95809.0,95799.0,0.156577]
[1740407479998,0.32059641,95820.0,95819.0,0.007]
[1740407480243,0.208726,95820.0,95799.0,0.04954091]
[1740407480462,0.156574,95801.0,95800.0,0.03289808]
[1740407480663,0.00125489,95808.0,95799.0,0.04768472]
[1740407480880,0.00125489,95808.0,95800.0,0.05876711]
[1740407481085,0.0001294,95801.0,95799.0,0.04331132]
[1740407481319,0.0001294,95801.0,95776.0,0.10264569]
[1740407481528,0.0001294,95801.0,95783.0,0.156603]
[1740407481740,0.0001294,95801.0,95800.0,0.007]
[1740407481951,0.00138429,95801.0,95800.0,0.007]
[1740407482172,0.0001294,95801.0,95800.0,0.007]
[1740407482392,0.0001294,95801.0,95800.0,0.26622169]
[1740407482599,0.0011294,95801.0,95800.0,0.26622169]
[1740407482804,0.0011294,95801.0,95800.0,0.16126112]
[1740407483022,0.0001294,95801.0,95800.0,0.05861543]
[1740407483443,0.0011294,95801.0,95800.0,0.163576]
[1740407483648,0.0011294,95801.0,95800.0,0.16503714]
[1740407483879,0.0011294,95801.0,95800.0,0.05748021]
[1740407484087,0.1577034,95801.0,95800.0,0.014]
[1740407484501,0.14748236,95801.0,95800.0,0.014]
[1740407484718,0.14748236,95801.0,95800.0,0.007]
[1740407484925,0.14973725,95801.0,95800.0,0.015695]
[1740407485344,0.14873725,95801.0,95800.0,0.008695]
[1740407485752,0.14973725,95801.0,95800.0,0.015695]
[1740407485956,0.13645327,95801.0,95800.0,0.015695]
[1740407486170,0.13545327,95801.0,95800.0,0.008695]
[1740407486394,0.13545327,95801.0,95800.0,0.001695]
[1740407486602,0.13645327,95801.0,95800.0,0.008695]
[1740407487033,0.13645327,95801.0,95800.0,0.06330036]
[1740407487658,0.13645327,95801.0,95800.0,0.05730036]
[1740407487932,0.12428363,95801.0,95800.0,0.05030036]
[1740407488143,0.12428363,95801.0,95800.0,0.05730036]
[1740407488346,0.12428363,95801.0,95800.0,0.05430036]
[1740407488554,0.39147017,95801.0,95800.0,0.05030036]
[1740407488985,0.37792932,95801.0,95800.0,0.05630036]
[1740407489194,0.27402874,95801.0,95800.0,0.05630036]
[1740407489402,0.27428363,95801.0,95800.0,0.05030036]
[1740407489884,0.15,95801.0,95800.0,0.05030036]
[1740407490087,0.156574,95801.0,95800.0,0.05030036]
[1740407490303,0.0008475,95820.0,95800.0,0.05430036]
[1740407490529,0.1027019,95819.0,95800.0,0.05430036]
[1740407490750,5.621e-05,95819.0,95800.0,0.15694605]
[1740407490969,0.20999189,95815.0,95800.0,0.15694605]
[1740407491185,5.621e-05,95819.0,95804.0,0.156568]
[1740407491406,0.00472698,95814.0,95800.0,0.15294605]
[1740407491621,0.00125489,95807.0,95804.0,0.03909087]
[1740407491850,0.19864023,95809.0,95800.0,0.06424754]
[1740407492060,0.00473887,95808.0,95804.0,0.03917484]
[1740407492271,0.16130287,95808.0,95800.0,0.04616489]
[1740407492489,0.15,95822.0,95800.0,0.001695]
[1740407492701,0.156574,95801.0,95800.0,0.04616489]
[1740407492889,0.156574,95801.0,95800.0,0.05316489]
[1740407493104,0.16128132,95801.0,95800.0,0.05316489]
[1740407493739,0.16128132,95801.0,95800.0,0.05616489]
[1740407494149,0.15254148,95801.0,95800.0,0.05316489]
[1740407494579,0.15254148,95801.0,95800.0,0.05016489]
[1740407494685,0.15254148,95801.0,95800.0,0.05216489]
[1740407494897,0.25518717,95801.0,95800.0,0.04816489]
[1740407495097,0.40518717,95801.0,95800.0,0.04816489]
[1740407495356,0.40618717,95801.0,95800.0,0.05516489]
[1740407495563,0.42072802,95801.0,95800.0,0.02379689]
[1740407495766,0.42072802,95801.0,95800.0,0.01679689]
[1740407495986,0.41972802,95801.0,95800.0,0.01679689]
[1740407496183,0.41972802,95801.0,95800.0,0.01979689]
[1740407496436,0.41972802,95801.0,95800.0,0.02679689]
[1740407496645,0.156623,95772.0,95765.0,0.0788]
[1740407496857,0.00466838,95771.0,95766.0,0.10264569]
[1740407497057,0.208822,95776.0,95766.0,0.10264569]
[1740407497058,0.208805,95783.0,95766.0,0.14616143]
[1740407497268,0.00471176,95782.0,95766.0,0.14616143]
[1740407497405,0.156612,95778.0,95766.0,0.14616143]
[1740407497611,0.00465846,95777.0,95766.0,0.14616143]
[1740407497813,0.001,95801.0,95800.0,0.156576]
[1740407498017,0.001,95801.0,95800.0,0.33439383]
[1740407498228,0.001,95801.0,95800.0,0.48439383]
[1740407498440,0.0008475,95820.0,95819.0,0.156545]
[1740407498639,0.00574582,95820.0,95819.0,0.28530933]
[1740407498848,0.0008475,95820.0,95819.0,0.15181002]
[1740407499085,0.0008475,95820.0,95819.0,0.20570933]
[1740407499266,0.0008475,95820.0,95819.0,0.30981594]
[1740407499502,0.0008475,95820.0,95819.0,0.30835502]
[1740407499750,0.0008475,95820.0,95819.0,0.04916433]
[1740407500009,0.0008475,95820.0,95819.0,0.26619069]
[1740407500243,0.0008475,95820.0,95819.0,0.30833468]
[1740407500768,0.0008475,95820.0,95819.0,0.31533468]
[1740407501239,0.0018475,95820.0,95819.0,0.32233468]
[1740407501730,0.0008475,95820.0,95819.0,0.31533468]
[1740407501940,0.0018475,95820.0,95819.0,0.32233468]
[1740407502660,0.0018475,95820.0,95819.0,0.47233468]
[1740407502922,0.1506157,95825.0,95824.0,0.156536]
[1740407503120,0.1506157,95825.0,95824.0,0.31101078]
[1740407504838,0.13933737,95825.0,95824.0,0.31801078]
[1740407506388,0.0008485,95839.0,95836.0,0.208688]
[1740407506596,0.00097805,95839.0,95838.0,0.156514]
[1740407506810,0.0022913,95848.0,95847.0,0.156499]
[1740407507038,0.00779096,95848.0,95847.0,0.156499]
[1740407507257,0.00779096,95848.0,95847.0,0.20152312]
[1740407507420,0.00272296,95848.0,95847.0,0.20298354]
[1740407507809,0.00272296,95848.0,95847.0,0.20152312]
[1740407508276,0.00272296,95848.0,95847.0,0.20298354]
[1740407508488,0.00272296,95848.0,95847.0,0.20152312]
[1740407508835,0.02991034,95868.0,95852.0,0.156489]
[1740407509038,0.156476,95862.0,95852.0,0.05175169]
[1740407509247,0.00508567,95861.0,95860.0,0.156478]
[1740407509449,0.00012942,95868.0,95862.0,0.156474]
[1740407509651,0.00012942,95868.0,95867.0,0.156466]
[1740407509856,0.00012942,95868.0,95867.0,0.21480666]
[1740407510058,0.00012942,95868.0,95867.0,0.2133465]
[1740407510259,0.00012942,95868.0,95867.0,0.31499219]
[1740407511079,0.00012942,95868.0,95867.0,0.32199219]
[1740407511287,0.00012942,95868.0,95867.0,0.31499219]
[1740407511706,0.00012942,95868.0,95867.0,0.32199219]
[1740407511919,0.0004,95889.0,95887.0,0.01232697]
[1740407512339,0.0004,95889.0,95888.0,0.156432]
[1740407512896,0.0004,95889.0,95887.0,0.01232697]
[1740407513125,0.208545,95903.0,95886.0,0.156435]
[1740407513126,0.156418,95897.0,95886.0,0.156435]
[1740407513453,0.0001294,95900.0,95887.0,0.007]
[1740407513651,0.306432,95888.0,95887.0,0.007]
[1740407514298,0.15645,95877.0,95858.0,0.05552083]
[1740407514475,0.15645,95877.0,95867.0,0.03381201]
[1740407514706,0.208603,95876.0,95858.0,0.05752588]
[1740407514910,0.0823,95904.0,95867.0,0.05941931]
[1740407515221,0.208563,95894.0,95867.0,0.06140631]
[1740407515429,0.0823,95904.0,95868.0,0.10410574]
[1740407515648,0.10277509,95900.0,95886.0,0.006]
[1740407515842,0.1438395,95887.0,95886.0,0.006]
[1740407516067,0.156455,95874.0,95868.0,0.0597105]
[1740407516270,0.208554,95898.0,95868.0,0.0597105]
[1740407516271,0.15,95898.0,95868.0,0.0597105]
[1740407516449,0.156457,95873.0,95867.0,0.004]
[1740407516673,0.156449,95878.0,95868.0,0.06048893]
[1740407516875,0.15,95896.0,95867.0,0.001]
[1740407516987,0.156452,95876.0,95858.0,0.15648]
[1740407517194,0.156452,95876.0,95868.0,0.007]
[1740407517412,0.10264569,95895.0,95868.0,0.007]
[1740407517830,0.15645,95877.0,95868.0,0.007]
[1740407518048,0.208565,95893.0,95868.0,0.007]
[1740407518258,0.156456,95874.0,95868.0,0.007]
[1740407518465,0.156454,95875.0,95859.0,0.14887345]
[1740407518668,0.208604,95876.0,95859.0,0.14887345]
[1740407519076,0.208583,95885.0,95859.0,0.14887345]
[1740407519308,0.156457,95873.0,95859.0,0.14887345]
[1740407519501,0.31121069,95893.0,95859.0,0.14887345]
[1740407519792,0.09113182,95893.0,95859.0,0.16187345]
[1740407520001,0.0008476,95921.0,95860.0,0.15146014]
[1740407520160,0.15,95912.0,95865.0,0.10264569]
[1740407520370,0.156426,95892.0,95880.0,0.156444]
[1740407520571,0.0008473,95893.0,95880.0,0.05614084]
[1740407520775,0.0008473,95893.0,95865.0,0.14433186]
[1740407520997,0.208567,95892.0,95865.0,0.14433186]
[1740407521187,0.15,95891.0,95865.0,0.04168617]
[1740407521393,0.25264569,95890.0,95859.0,0.008]
[1740407521593,0.156468,95866.0,95865.0,0.0685466]
[1740407521863,0.08350687,95881.0,95866.0,0.01166037]
[1740407521864,0.156466,95867.0,95866.0,0.01166037]
[1740407522343,0.08350687,95881.0,95859.0,0.001]
[1740407522551,0.08350687,95881.0,95844.0,0.0795]
[1740407522552,0.156472,95864.0,95844.0,0.0795]
[1740407522761,0.156476,95861.0,95860.0,0.005]
[1740407523393,0.208633,95862.0,95845.0,0.13722904]
[1740407523604,0.156489,95854.0,95845.0,0.13722904]
[1740407523816,0.306466,95867.0,95866.0,0.007]
[1740407524027,0.40911169,95867.0,95866.0,0.007]
[1740407524211,0.39571583,95867.0,95866.0,0.007]
[1740407525116,0.156502,95845.0,95844.0,0.00012942]
[1740407525836,0.306502,95845.0,95844.0,0.00012942]
[1740407526045,0.29569678,95845.0,95844.0,0.00012942]
[1740407526496,0.39834247,95845.0,95844.0,0.00012942]
[1740407526702,0.39834247,95845.0,95844.0,0.00612942]
[1740407526916,0.43560653,95845.0,95844.0,0.05439747]
[1740407527358,0.43560653,95845.0,95844.0,0.05539747]
[1740407527566,0.01634623,95849.0,95844.0,0.05539747]
[1740407527775,0.078,95873.0,95844.0,0.05539747]
[1740407528081,0.00777075,95875.0,95845.0,0.10410627]
[1740407528473,0.01454085,95890.0,95852.0,0.19282437]
[1740407528703,0.15,95888.0,95853.0,0.00146035]
[1740407528886,0.15,95886.0,95854.0,0.00146034]
[1740407529097,0.156472,95864.0,95847.0,0.156499]
[1740407529314,0.208625,95866.0,95848.0,0.10264569]
[1740407529516,0.003,95875.0,95849.0,0.00146035]
[1740407529736,0.003,95875.0,95855.0,0.156484]
[1740407529957,0.156452,95876.0,95875.0,0.01067878]
[1740407530390,0.001,95888.0,95875.0,0.01067878]
[1740407530623,0.001,95888.0,95876.0,0.10264569]
[1740407530829,0.001,95888.0,95880.0,0.156443]
[1740407531039,0.156419,95896.0,95881.0,0.10264569]
[1740407531259,0.00012942,95896.0,95881.0,0.16490213]
[1740407531471,0.00012942,95896.0,95882.0,0.08095989]
[1740407531684,0.00012942,95896.0,95895.0,0.156421]
[1740407531903,0.00012942,95896.0,95895.0,0.30493409]
[1740407532148,0.00012942,95896.0,95895.0,0.30347438]
[1740407532355,0.156359,95933.0,95914.0,0.20426558]
[1740407532595,0.208472,95936.0,95915.0,0.00145941]
[1740407532800,0.24697422,95930.0,95915.0,0.00145941]
[1740407533006,0.24697322,95930.0,95914.0,0.20426558]
[1740407533218,0.09060922,95930.0,95914.0,0.30691127]
[1740407533463,0.24697322,95930.0,95914.0,0.30691127]
[1740407533666,0.156766,95929.0,95914.0,0.31391127]
[1740407533874,0.09060922,95930.0,95915.0,0.10264569]
[1740407533875,0.08037843,95930.0,95915.0,0.10264569]
[1740407534081,0.0805078,95930.0,95915.0,0.14468674]
[1740407534289,0.00012937,95930.0,95916.0,0.129]
[1740407534502,0.00012937,95930.0,95917.0,0.10264569]
[1740407534759,0.00012937,95930.0,95917.0,0.15106695]
[1740407535192,0.00012937,95930.0,95919.0,0.05029183]
[1740407535396,0.00012937,95930.0,95918.0,0.156383]
[1740407535600,0.00012937,95930.0,95918.0,0.20414434]
[1740407535816,0.14419044,95932.0,95918.0,0.20414434]
[1740407536038,0.156362,95932.0,95918.0,0.04789071]
[1740407536254,0.0008476,95935.0,95919.0,0.10264569]
[1740407536480,0.0008476,95935.0,95919.0,0.25902669]
[1740407536690,0.156357,95934.0,95920.0,0.04587309]
[1740407536900,0.0008476,95935.0,95921.0,0.10264569]
[1740407537110,0.0008476,95935.0,95921.0,0.14141296]
[1740407537329,0.0008476,95935.0,95925.0,0.15637]
[1740407537544,0.0008476,95935.0,95921.0,0.14141296]
[1740407537545,0.0008476,95935.0,95934.0,0.156357]
[1740407537755,0.0008476,95935.0,95934.0,0.26046177]
[1740407537968,0.0008495,95963.0,95943.0,0.156342]
[1740407537969,0.00339375,95944.0,95943.0,0.156342]
[1740407538177,0.00339375,95944.0,95943.0,0.03571869]
[1740407538381,0.00339375,95944.0,95934.0,0.14504278]
[1740407538599,0.00339375,95944.0,95917.0,0.208512]
[1740407538600,0.00339375,95944.0,95935.0,0.10264569]
[1740407538800,0.00339375,95944.0,95943.0,0.04076701]
[1740407539010,0.00339375,95944.0,95943.0,0.25898769]
[1740407539212,0.00339375,95944.0,95943.0,0.10264569]
[1740407539417,0.00339375,95944.0,95943.0,0.31588663]
[1740407539627,0.00339375,95944.0,95943.0,0.15954463]
[1740407539828,0.0008495,95963.0,95943.0,0.15954463]
[1740407540051,0.156319,95958.0,95944.0,0.10264569]
[1740407540278,0.0008495,95963.0,95944.0,0.14905762]
[1740407540870,0.0008495,95963.0,95945.0,0.00145886]
[1740407541138,0.0008495,95963.0,95946.0,0.10264569]
[1740407541340,0.0008495,95963.0,95946.0,0.1464021]
[1740407541475,0.0008495,95963.0,95947.0,0.208448]
[1740407541675,0.0008495,95963.0,95948.0,0.10264569]
[1740407541896,0.08350687,96001.0,95948.0,0.10264569]
[1740407541897,0.23350687,95987.0,95954.0,0.03649334]
[1740407542097,0.156307,95965.0,95955.0,0.10264569]
[1740407542322,0.15,95985.0,95955.0,0.0497]
[1740407542525,0.208361,95988.0,95956.0,0.10410445]
[1740407542526,0.03594629,95988.0,95956.0,0.10410445]
[1740407542743,0.00043142,95985.0,95956.0,0.14746098]
[1740407542964,0.00043142,95985.0,95956.0,0.14600222]
[1740407543086,0.10307711,95985.0,95956.0,0.04335653]
[1740407543287,0.01454085,95983.0,95948.0,0.004]
[1740407543513,0.15,95955.0,95933.0,0.03967913]
[1740407543720,0.0795,95965.0,95934.0,0.02925957]
[1740407544038,0.15,95969.0,95935.0,0.10264569]
[1740407544239,0.0486,95970.0,95955.0,0.005]
[1740407544240,0.10264569,95968.0,95955.0,0.005]
[1740407544441,0.306321,95956.0,95955.0,0.005]
[1740407544690,0.40896669,95956.0,95955.0,0.005]
[1740407544939,0.40939784,95956.0,95955.0,0.005]
[1740407545358,0.156375,95923.0,95922.0,0.03214275]
[1740407545565,0.15,95940.0,95922.0,0.03214275]
[1740407545767,0.01454085,95954.0,95922.0,0.03214275]
[1740407545976,0.156375,95923.0,95922.0,0.03214275]
[1740407546825,0.14752609,95923.0,95922.0,0.03214275]
[1740407547508,0.15,95927.0,95922.0,0.03214275]
[1740407547709,0.156375,95923.0,95922.0,0.03214275]
[1740407548447,0.25902069,95923.0,95922.0,0.03214275]
[1740407548896,0.39650331,95923.0,95922.0,0.03214275]
[1740407549112,0.48145988,95923.0,95922.0,0.03214275]
[1740407549321,0.52705988,95923.0,95922.0,0.03214275]
[1740407549533,0.44210331,95923.0,95922.0,0.03214275]
[1740407549739,0.59604531,95923.0,95922.0,0.03214275]
[1740407550146,0.44210331,95923.0,95922.0,0.03214275]
[1740407550822,0.45664416,95923.0,95922.0,0.03214275]
[1740407551061,0.38569733,95923.0,95922.0,0.03214275]
[1740407551277,0.156339,95945.0,95922.0,0.03214275]
[1740407551512,0.0008494,95963.0,95923.0,0.00145934]
[1740407551513,0.3259,95962.0,95923.0,0.00145934]
[1740407551746,0.0008494,95963.0,95923.0,0.10410503]
[1740407551958,0.03698128,95962.0,95934.0,0.208475]
[1740407552168,0.001,95956.0,95935.0,0.31257768]
[1740407552381,0.001,95956.0,95935.0,0.10410468]
[1740407552603,0.156328,95953.0,95935.0,0.14988873]
[1740407552806,0.20943,95956.0,95953.0,0.01306061]
[1740407553021,0.20943,95956.0,95935.0,0.14988873]
[1740407553234,0.20943,95956.0,95935.0,0.04724304]
[1740407553235,0.1245129,95956.0,95935.0,0.04724304]
[1740407553441,0.156354,95936.0,95935.0,0.04724304]
[1740407553649,0.25264569,95955.0,95925.0,0.03160703]
[1740407553861,0.15,95955.0,95926.0,0.10264569]
[1740407554279,0.10264569,95954.0,95926.0,0.04887145]
[1740407554489,0.156362,95932.0,95926.0,0.04887145]
[1740407554695,0.15636,95933.0,95922.0,0.04272284]
[1740407554904,0.306326,95953.0,95952.0,0.01150503]
[1740407555137,0.01454085,95952.0,95934.0,0.005]
[1740407555346,0.156355,95935.0,95934.0,0.005]
[1740407555573,0.157375,95923.0,95922.0,0.03972284]
[1740407555784,0.26002069,95923.0,95922.0,0.03972284]
[1740407556206,0.157375,95923.0,95922.0,0.03972284]
[1740407556449,0.26002069,95923.0,95922.0,0.03972284]
[1740407557070,0.3965279,95923.0,95922.0,0.03672284]
[1740407557463,0.3965279,95923.0,95922.0,0.03872284]
[1740407557830,0.7772789,95923.0,95922.0,0.03672284]
[1740407558042,1.08942875,95923.0,95922.0,0.00638555]
[1740407558234,0.15645,95877.0,95876.0,0.04888438]
[1740407558436,0.15,95906.0,95876.0,0.00012937]
[1740407558672,0.156449,95878.0,95876.0,0.04438703]
[1740407558873,0.15645,95877.0,95876.0,0.00012937]
[1740407559090,0.15645,95877.0,95876.0,0.03620898]
[1740407559295,0.15,95892.0,95876.0,0.00012937]
[1740407559496,0.15645,95877.0,95876.0,0.04320291]
[1740407559705,0.15645,95877.0,95876.0,0.00012937]
[1740407559918,0.15645,95877.0,95876.0,0.03341702]
[1740407560128,0.15645,95877.0,95876.0,0.00012937]
[1740407560359,0.15645,95877.0,95876.0,0.05116396]
[1740407560574,0.15645,95877.0,95876.0,0.00012937]
[1740407560782,0.15645,95877.0,95876.0,0.04435707]
[1740407560994,0.30645,95877.0,95876.0,0.00012937]
[1740407561214,0.30645,95877.0,95876.0,0.04026561]
[1740407561426,0.30745,95877.0,95876.0,0.00712937]
[1740407561632,0.001,95877.0,95876.0,0.04267151]
[1740407561841,0.15745,95877.0,95876.0,0.04267151]
[1740407562040,0.15645,95877.0,95876.0,0.03567151]
[1740407562466,0.15,95888.0,95876.0,0.03567151]
[1740407562467,0.08350687,95908.0,95876.0,0.04067151]
[1740407562675,0.208581,95886.0,95876.0,0.04067151]
[1740407562876,0.15,95906.0,95876.0,0.04067151]
[1740407563080,0.10264569,95905.0,95876.0,0.04067151]
[1740407563304,0.156445,95880.0,95876.0,0.04067151]
[1740407563521,0.10264569,95905.0,95876.0,0.19812351]
[1740407563522,0.001,95877.0,95876.0,0.19812351]
[1740407563746,0.001,95877.0,95876.0,0.6939692]
[1740407564013,0.03595552,95921.0,95876.0,0.5365172]
[1740407564225,0.156417,95898.0,95877.0,0.10264569]
[1740407564450,0.005,95906.0,95878.0,0.3214]
[1740407564659,0.005,95906.0,95879.0,0.10264569]
[1740407564869,0.08803183,95920.0,95879.0,0.10264569]
[1740407565066,0.08803183,95920.0,95879.0,0.13486242]
[1740407565067,0.23803183,95920.0,95879.0,0.13486242]
[1740407565290,0.001,95921.0,95879.0,0.45626242]
[1740407565497,0.3259,95936.0,95880.0,0.15]
[1740407565697,0.31111969,95935.0,95889.0,0.208572]
[1740407566010,0.15,95934.0,95890.0,0.42404569]
[1740407566150,0.156371,95926.0,95890.0,0.42550531]
[1740407566356,0.156369,95927.0,95896.0,0.15]
[1740407566553,0.156374,95924.0,95905.0,0.156404]
[1740407566751,0.15,95945.0,95924.0,0.01155146]
[1740407567021,0.15,95943.0,95905.0,0.3214]
[1740407567222,0.156388,95916.0,95906.0,0.03161772]
[1740407567340,0.156403,95906.0,95905.0,0.03775812]
[1740407567539,0.0163315,95940.0,95905.0,0.10264569]
[1740407567799,0.156389,95915.0,95906.0,0.10264569]
[1740407567994,0.10264569,95939.0,95905.0,0.04295122]
[1740407568205,0.15,95938.0,95906.0,0.0014596]
[1740407568393,0.15,95934.0,95905.0,0.00012937]
[1740407568633,0.156384,95918.0,95905.0,0.00012937]
[1740407568836,0.15,95932.0,95905.0,0.00012937]
[1740407568837,0.13826301,95932.0,95905.0,0.00012937]
[1740407569022,0.10264569,95933.0,95905.0,0.00012937]
[1740407569575,0.156385,95917.0,95906.0,0.10264569]
[1740407569894,0.003,95940.0,95906.0,0.14592274]
[1740407570105,0.10764569,95939.0,95906.0,0.14592274]
[1740407570587,0.156383,95918.0,95906.0,0.14592274]
[1740407570795,0.156395,95911.0,95906.0,0.14592274]
[1740407571001,0.156392,95913.0,95906.0,0.04327705]
[1740407571203,0.15,95934.0,95906.0,0.04327705]
[1740407571358,0.15,95934.0,95905.0,0.00012937]
[1740407571359,0.156403,95906.0,95905.0,0.00012937]
[1740407572155,0.15,95928.0,95905.0,0.00012937]
[1740407572353,0.15,95926.0,95905.0,0.00012937]
[1740407572560,0.15,95931.0,95905.0,0.0460347]
[1740407572763,0.208489,95928.0,95905.0,0.0460347]
[1740407573161,0.208489,95928.0,95906.0,0.006]
[1740407573360,0.1564,95908.0,95906.0,0.006]
[1740407573566,0.1564,95908.0,95905.0,0.0460347]
[1740407573809,0.208489,95928.0,95905.0,0.0390347]
[1740407574010,0.00544527,95933.0,95905.0,0.0390347]
[1740407574011,0.156403,95906.0,95905.0,0.0390347]
[1740407574214,0.156403,95906.0,95905.0,0.0400347]
[1740407574366,0.156403,95906.0,95905.0,0.0390347]
[1740407574566,0.25904869,95906.0,95905.0,0.0390347]
[1740407574779,0.39753921,95906.0,95905.0,0.0530347]
[1740407574998,0.39753921,95906.0,95905.0,0.0460347]
[1740407575203,1.42043906,95906.0,95905.0,7e-07]
[1740407575431,0.41208006,95906.0,95905.0,7e-07]
[1740407575633,0.15645,95877.0,95876.0,0.03174327]
[1740407575834,0.15645,95877.0,95876.0,0.03187269]
[1740407576751,0.15,95895.0,95876.0,0.03187269]
[1740407576980,0.15,95893.0,95876.0,0.03187269]
[1740407577187,0.15645,95877.0,95876.0,0.03187269]
[1740407577396,0.15745,95877.0,95876.0,0.03887269]
[1740407577815,0.001,95877.0,95876.0,0.03887269]
[1740407578021,0.3459,95917.0,95876.0,0.03887269]
[1740407578022,0.208528,95911.0,95876.0,0.03387269]
[1740407578248,0.15,95895.0,95877.0,0.00146004]
[1740407578454,0.10264569,95910.0,95878.0,0.00146004]
[1740407578661,0.10264569,95910.0,95876.0,0.03487269]
[1740407578864,0.15,95901.0,95876.0,0.03487269]
[1740407579075,0.156428,95891.0,95876.0,0.03487269]
[1740407579277,0.156431,95889.0,95877.0,0.10410569]
[1740407579507,0.156432,95889.0,95877.0,0.10410569]
[1740407579713,0.156436,95886.0,95877.0,0.14800421]
[1740407579914,0.208576,95889.0,95877.0,0.14800421]
[1740407580329,0.156448,95878.0,95877.0,0.04535852]
[1740407580553,0.306448,95878.0,95877.0,0.04535852]
[1740407580761,0.15645,95877.0,95876.0,0.0274101]
[1740407580972,0.30645,95877.0,95876.0,0.00182802]
[1740407581185,0.30645,95877.0,95876.0,0.0274101]
[1740407581394,0.40909569,95877.0,95876.0,0.0274101]
[1740407581608,0.51685924,95877.0,95876.0,0.0274101]
[1740407581813,0.42363654,95877.0,95876.0,0.0274101]
[1740407583000,0.29687394,95850.0,95839.0,0.001697]
[1740407583462,0.39951963,95850.0,95849.0,0.00182362]
[1740407583681,0.84257048,95850.0,95849.0,6.2e-07]
[1740407583893,0.5581251,95850.0,95849.0,6.2e-07]
[1740407584112,0.45557784,95850.0,95849.0,0.03586313]
[1740407584328,0.44103699,95850.0,95849.0,0.03586313]
[1740407584756,1.02507499,95850.0,95849.0,0.03586313]
[1740407584971,0.30651,95840.0,95839.0,0.001697]
[1740407585185,0.306512,95839.0,95810.0,0.001697]
[1740407585398,0.42369854,95839.0,95838.0,6e-07]
[1740407585604,0.42369854,95839.0,95810.0,0.001697]
[1740407585605,0.306532,95827.0,95810.0,0.001697]
[1740407585825,0.40917769,95827.0,95810.0,0.001697]
[1740407586030,0.40917769,95827.0,95826.0,0.00212886]
[1740407586207,0.40917769,95827.0,95826.0,0.03364544]
[1740407586444,0.50637711,95827.0,95826.0,4.4e-07]
[1740407586866,0.50637711,95827.0,95810.0,0.001697]
[1740407586867,0.306558,95811.0,95810.0,0.03322753]
[1740407587081,0.40920369,95811.0,95810.0,0.00182655]
[1740407588062,0.40920369,95811.0,95810.0,0.03254604]
[1740407588470,0.306558,95811.0,95810.0,0.03254604]
[1740407588876,0.308558,95811.0,95810.0,0.03254604]
[1740407589869,0.41120369,95811.0,95810.0,0.03254604]
[1740407590265,0.32109985,95810.0,95809.0,4e-08]
[1740407590490,0.42374554,95810.0,95809.0,4e-08]
[1740407590669,0.306589,95792.0,95781.0,0.0016976]